[Event "Late-Titled-Tuesday-Blitz-March-05-2024"]
[Site "Chess.com"]
[Date "2024.03.05"]
[Round "11"]
[White "DanielNaroditsky"]
[Black "Beca95"]
[Result "0-1"]
[WhiteElo "3087"]
[BlackElo "2989"]
[TimeControl "180+1"]
[EndTime "16:03:06 PST"]
[Termination "Beca95 won on time"]

1. e4 {[%clk 0:03:00.9]} 1... e5 {[%clk 0:02:56.3]} 2. Nf3 {[%clk 0:03:00.4]}
2... Nc6 {[%clk 0:02:56.7]} 3. Nc3 {[%clk 0:03:01.1]} 3... Nf6 {[%clk
0:02:56.9]} 4. g3 {[%clk 0:03:00]} 4... Bb4 {[%clk 0:02:51.9]} 5. Bg2 {[%clk
0:02:59.7]} 5... d6 {[%clk 0:02:49.5]} 6. O-O {[%clk 0:02:57.3]} 6... Bxc3
{[%clk 0:02:49.4]} 7. dxc3 {[%clk 0:02:57.5]} 7... h6 {[%clk 0:02:48.1]} 8. Nd2
{[%clk 0:02:52.9]} 8... Be6 {[%clk 0:02:46.7]} 9. f4 {[%clk 0:02:48.5]} 9... b5
{[%clk 0:02:45.5]} 10. a4 {[%clk 0:02:39.9]} 10... a6 {[%clk 0:02:45.3]} 11. Qe2
{[%clk 0:02:39.9]} 11... Bg4 {[%clk 0:02:24.8]} 12. Qd3 {[%clk 0:02:35.6]} 12...
Bd7 {[%clk 0:01:21.9]} 13. b3 {[%clk 0:02:25.5]} 13... Rb8 {[%clk 0:01:20.6]}
14. axb5 {[%clk 0:02:24.5]} 14... axb5 {[%clk 0:01:20.3]} 15. c4 {[%clk
0:01:54.7]} 15... O-O {[%clk 0:01:00.1]} 16. Bb2 {[%clk 0:01:55.1]} 16... Re8
{[%clk 0:00:56.7]} 17. Bc3 {[%clk 0:01:22.4]} 17... bxc4 {[%clk 0:00:46.9]} 18.
Nxc4 {[%clk 0:01:23.3]} 18... Be6 {[%clk 0:00:46.7]} 19. Ne3 {[%clk 0:01:16.8]}
19... Bd7 {[%clk 0:00:33.3]} 20. f5 {[%clk 0:00:51.5]} 20... Ne7 {[%clk
0:00:30.8]} 21. g4 {[%clk 0:00:46.5]} 21... Bb5 {[%clk 0:00:30.6]} 22. Nc4
{[%clk 0:00:43.8]} 22... Nc8 {[%clk 0:00:30.1]} 23. Qg3 {[%clk 0:00:25.6]} 23...
Nd7 {[%clk 0:00:29.7]} 24. h4 {[%clk 0:00:24.4]} 24... Bxc4 {[%clk 0:00:29.8]}
25. bxc4 {[%clk 0:00:24.7]} 25... Ncb6 {[%clk 0:00:30.3]} 26. g5 {[%clk
0:00:24.2]} 26... hxg5 {[%clk 0:00:22.7]} 27. hxg5 {[%clk 0:00:25.1]} 27... f6
{[%clk 0:00:20.7]} 28. Bf3 {[%clk 0:00:20.4]} 28... fxg5 {[%clk 0:00:17.9]} 29.
Bh5 {[%clk 0:00:18.8]} 29... Nxc4 {[%clk 0:00:17.7]} 30. Bxe8 {[%clk 0:00:11.3]}
30... Qxe8 {[%clk 0:00:18.6]} 31. Qxg5 {[%clk 0:00:12.1]} 31... Nf6 {[%clk
0:00:18.7]} 32. Rae1 {[%clk 0:00:09.7]} 32... Qc6 {[%clk 0:00:17.8]} 33. Qg6
{[%clk 0:00:07.5]} 33... Qc5+ {[%clk 0:00:17.7]} 34. Kh1 {[%clk 0:00:04.9]}
34... Ne3 {[%clk 0:00:16.1]} 35. Rg1 {[%clk 0:00:05.3]} 35... Neg4 {[%clk
0:00:16.2]} 36. Rg3 {[%clk 0:00:03.1]} 36... Qc4 {[%clk 0:00:12.6]} 37. Ree3
{[%clk 0:00:02.2]} 37... Rb1+ {[%clk 0:00:11.6]} 38. Rg1 {[%clk 0:00:01.7]}
38... Rxg1+ {[%clk 0:00:11.2]} 39. Kxg1 {[%clk 0:00:02]} 39... Nxe3 {[%clk
0:00:11.8]} 0-1

[Event "Late-Titled-Tuesday-Blitz-March-05-2024"]
[Site "Chess.com"]
[Date "2024.03.05"]
[Round "11"]
[White "Msb2"]
[Black "MagnusCarlsen"]
[Result "0-1"]
[WhiteElo "2997"]
[BlackElo "3249"]
[TimeControl "180+1"]
[EndTime "16:03:08 PST"]
[Termination "MagnusCarlsen won by checkmate"]

1. d4 {[%clk 0:03:00.9]} 1... g6 {[%clk 0:02:49.6]} 2. c4 {[%clk 0:03:01.1]}
2... Bg7 {[%clk 0:02:49.9]} 3. e4 {[%clk 0:03:01.8]} 3... d6 {[%clk 0:02:50.3]}
4. Nc3 {[%clk 0:03:02.5]} 4... c5 {[%clk 0:02:49.3]} 5. d5 {[%clk 0:03:01.7]}
5... Bxc3+ {[%clk 0:02:48.9]} 6. bxc3 {[%clk 0:03:02.6]} 6... e5 {[%clk
0:02:49.1]} 7. dxe6 {[%clk 0:03:03.5]} 7... Bxe6 {[%clk 0:02:49]} 8. Rb1 {[%clk
0:03:04.2]} 8... Nf6 {[%clk 0:02:42.4]} 9. Bd3 {[%clk 0:03:01.9]} 9... Qe7
{[%clk 0:02:37.7]} 10. Ne2 {[%clk 0:02:56.8]} 10... Nc6 {[%clk 0:02:35.9]} 11.
O-O {[%clk 0:02:52.6]} 11... Ne5 {[%clk 0:02:22]} 12. Nf4 {[%clk 0:02:48.2]}
12... b6 {[%clk 0:02:16.2]} 13. Nd5 {[%clk 0:02:34.8]} 13... Nxd5 {[%clk
0:02:13.3]} 14. cxd5 {[%clk 0:02:35.7]} 14... Bd7 {[%clk 0:02:12.6]} 15. Bc2
{[%clk 0:02:15]} 15... g5 {[%clk 0:02:12.2]} 16. a4 {[%clk 0:02:02.2]} 16... h5
{[%clk 0:02:09.3]} 17. Qe2 {[%clk 0:01:54.3]} 17... h4 {[%clk 0:02:07.6]} 18. f4
{[%clk 0:01:50]} 18... gxf4 {[%clk 0:02:07.6]} 19. Bxf4 {[%clk 0:01:50.9]} 19...
Rg8 {[%clk 0:02:04.5]} 20. Kh1 {[%clk 0:01:51.2]} 20... Rg6 {[%clk 0:01:48]} 21.
a5 {[%clk 0:01:35.3]} 21... b5 {[%clk 0:01:46.8]} 22. Qh5 {[%clk 0:01:30.9]}
22... O-O-O {[%clk 0:01:39.5]} 23. Bxe5 {[%clk 0:01:21.5]} 23... dxe5 {[%clk
0:01:36.2]} 24. d6 {[%clk 0:01:20.4]} 24... Qxd6 {[%clk 0:01:08.7]} 25. Rbd1
{[%clk 0:00:56]} 25... Bg4 {[%clk 0:00:43.1]} 26. Rxd6 {[%clk 0:00:31]} 26...
Bxh5 {[%clk 0:00:43]} 27. Rd5 {[%clk 0:00:23.8]} 27... Rxd5 {[%clk 0:00:40.2]}
28. exd5 {[%clk 0:00:24.7]} 28... Ra6 {[%clk 0:00:40.1]} 29. Ra1 {[%clk
0:00:15.6]} 29... Kd7 {[%clk 0:00:39]} 30. c4 {[%clk 0:00:10.5]} 30... Be2
{[%clk 0:00:31.4]} 31. cxb5 {[%clk 0:00:08]} 31... Bxb5 {[%clk 0:00:32.3]} 32.
Rb1 {[%clk 0:00:05.6]} 32... Rxa5 {[%clk 0:00:31.6]} 33. g3 {[%clk 0:00:06.1]}
33... hxg3 {[%clk 0:00:31.6]} 34. hxg3 {[%clk 0:00:07]} 34... Kd6 {[%clk
0:00:31.9]} 35. Be4 {[%clk 0:00:04.3]} 35... a6 {[%clk 0:00:29.8]} 36. Rb2
{[%clk 0:00:04.6]} 36... Ra4 {[%clk 0:00:30.1]} 37. Bf3 {[%clk 0:00:04.7]} 37...
e4 {[%clk 0:00:30]} 38. Bg2 {[%clk 0:00:05.3]} 38... Kxd5 {[%clk 0:00:30]} 39.
Rf2 {[%clk 0:00:04.9]} 39... Ke6 {[%clk 0:00:28.6]} 40. Rf4 {[%clk 0:00:04.8]}
40... e3 {[%clk 0:00:29.1]} 41. Rf3 {[%clk 0:00:04.5]} 41... Ra1+ {[%clk
0:00:28.1]} 42. Kh2 {[%clk 0:00:04.8]} 42... e2 {[%clk 0:00:29]} 43. Re3+ {[%clk
0:00:05.3]} 43... Kd6 {[%clk 0:00:29.7]} 44. g4 {[%clk 0:00:04]} 44... e1=Q
{[%clk 0:00:30]} 45. Rxe1 {[%clk 0:00:04.9]} 45... Rxe1 {[%clk 0:00:30.4]} 46.
g5 {[%clk 0:00:05.8]} 46... Re5 {[%clk 0:00:30]} 47. Kg3 {[%clk 0:00:06.7]}
47... Rxg5+ {[%clk 0:00:30.2]} 48. Kf2 {[%clk 0:00:07.5]} 48... Rxg2+ {[%clk
0:00:30.5]} 49. Kxg2 {[%clk 0:00:08.4]} 49... a5 {[%clk 0:00:30.3]} 50. Kf3
{[%clk 0:00:09.3]} 50... a4 {[%clk 0:00:31.2]} 51. Kf4 {[%clk 0:00:10.1]} 51...
a3 {[%clk 0:00:31.7]} 52. Ke3 {[%clk 0:00:11]} 52... a2 {[%clk 0:00:32.3]} 53.
Kf4 {[%clk 0:00:11.9]} 53... a1=Q {[%clk 0:00:32.7]} 54. Ke3 {[%clk 0:00:12.8]}
54... Qd4+ {[%clk 0:00:32.8]} 55. Kf3 {[%clk 0:00:13.2]} 55... c4 {[%clk
0:00:31.4]} 56. Kg3 {[%clk 0:00:14.1]} 56... c3 {[%clk 0:00:32.1]} 57. Kh2
{[%clk 0:00:15]} 57... c2 {[%clk 0:00:32.6]} 58. Kh3 {[%clk 0:00:15.9]} 58...
c1=Q {[%clk 0:00:32.6]} 59. Kg2 {[%clk 0:00:16.8]} 59... Qcc3 {[%clk 0:00:29.3]}
60. Kh1 {[%clk 0:00:16.8]} 60... Qdd2 {[%clk 0:00:27.7]} 61. Kg1 {[%clk
0:00:17.7]} 61... Qcc1# {[%clk 0:00:28.1]} 0-1

[Event "Late-Titled-Tuesday-Blitz-March-05-2024"]
[Site "Chess.com"]
[Date "2024.03.05"]
[Round "11"]
[White "DonBroca"]
[Black "Schattman"]
[Result "1-0"]
[WhiteElo "2175"]
[BlackElo "2393"]
[TimeControl "180+1"]
[EndTime "16:03:08 PST"]
[Termination "DonBroca won on time"]

1. e4 {[%clk 0:03:00.9]} 1... c6 {[%clk 0:03:00.4]} 2. d4 {[%clk 0:03:00.4]}
2... d5 {[%clk 0:03:01]} 3. Nc3 {[%clk 0:03:01.3]} 3... dxe4 {[%clk 0:03:00.8]}
4. Nxe4 {[%clk 0:03:02.2]} 4... Nf6 {[%clk 0:03:01.2]} 5. Nxf6+ {[%clk
0:03:01.5]} 5... exf6 {[%clk 0:03:02.1]} 6. Bf4 {[%clk 0:03:01.2]} 6... Bd6
{[%clk 0:02:58.9]} 7. Qd2 {[%clk 0:02:58.1]} 7... O-O {[%clk 0:02:57.8]} 8. Bd3
{[%clk 0:02:57.5]} 8... Bg4 {[%clk 0:02:50.4]} 9. f3 {[%clk 0:02:54.7]} 9... Be6
{[%clk 0:02:42.9]} 10. Ne2 {[%clk 0:02:53.7]} 10... Qc7 {[%clk 0:02:41.1]} 11.
O-O {[%clk 0:02:51.9]} 11... Nd7 {[%clk 0:02:39.6]} 12. c3 {[%clk 0:02:43.3]}
12... Rfe8 {[%clk 0:02:39.6]} 13. Rfe1 {[%clk 0:02:41]} 13... Rad8 {[%clk
0:02:38.8]} 14. Bxd6 {[%clk 0:02:37.5]} 14... Qxd6 {[%clk 0:02:38.5]} 15. Qf4
{[%clk 0:02:37.6]} 15... Qd5 {[%clk 0:02:17.7]} 16. Qh4 {[%clk 0:01:52.5]} 16...
g6 {[%clk 0:01:58]} 17. Nf4 {[%clk 0:01:51.6]} 17... Qd6 {[%clk 0:01:52.2]} 18.
Nxe6 {[%clk 0:01:46.2]} 18... fxe6 {[%clk 0:01:45.4]} 19. Bc4 {[%clk 0:01:16.7]}
19... Kg7 {[%clk 0:01:45.1]} 20. Rad1 {[%clk 0:01:14]} 20... Nb6 {[%clk
0:01:41.4]} 21. Bb3 {[%clk 0:01:12.1]} 21... Nd5 {[%clk 0:01:41.3]} 22. Qe4
{[%clk 0:00:56.6]} 22... b5 {[%clk 0:01:35.9]} 23. Bxd5 {[%clk 0:00:49.6]} 23...
cxd5 {[%clk 0:01:34]} 24. Qd3 {[%clk 0:00:47.4]} 24... Rb8 {[%clk 0:01:33.6]}
25. Re2 {[%clk 0:00:45.3]} 25... b4 {[%clk 0:01:29.1]} 26. c4 {[%clk 0:00:45.3]}
26... dxc4 {[%clk 0:01:25.9]} 27. Qxc4 {[%clk 0:00:46.2]} 27... Rbc8 {[%clk
0:01:23.7]} 28. Qb3 {[%clk 0:00:45.7]} 28... a5 {[%clk 0:01:12.7]} 29. g3 {[%clk
0:00:37.3]} 29... Qd5 {[%clk 0:01:06.5]} 30. Qxd5 {[%clk 0:00:27.5]} 30... exd5
{[%clk 0:01:06.6]} 31. Rxe8 {[%clk 0:00:23.6]} 31... Rxe8 {[%clk 0:01:06.4]} 32.
Kf2 {[%clk 0:00:24]} 32... Rc8 {[%clk 0:01:06.2]} 33. Ke2 {[%clk 0:00:22.9]}
33... Rc2+ {[%clk 0:00:59.3]} 34. Rd2 {[%clk 0:00:23.5]} 34... Rc4 {[%clk
0:00:58.3]} 35. Kd3 {[%clk 0:00:22.6]} 35... Kf7 {[%clk 0:00:56.1]} 36. Rc2
{[%clk 0:00:23]} 36... Rxc2 {[%clk 0:00:55.1]} 37. Kxc2 {[%clk 0:00:23.2]} 37...
a4 {[%clk 0:00:45.1]} 38. a3 {[%clk 0:00:21.8]} 38... bxa3 {[%clk 0:00:27.3]}
39. bxa3 {[%clk 0:00:22.7]} 39... f5 {[%clk 0:00:27.5]} 40. Kc3 {[%clk
0:00:22.1]} 40... f4 {[%clk 0:00:27.9]} 41. g4 {[%clk 0:00:21.9]} 41... Kf6
{[%clk 0:00:27.4]} 42. h4 {[%clk 0:00:18.8]} 42... g5 {[%clk 0:00:12.6]} 43. h5
{[%clk 0:00:17.2]} 43... Ke6 {[%clk 0:00:12.2]} 44. Kb4 {[%clk 0:00:17.3]} 44...
Kd6 {[%clk 0:00:13.1]} 45. Kxa4 {[%clk 0:00:18.1]} 45... Kc6 {[%clk 0:00:13.7]}
46. Kb4 {[%clk 0:00:18.5]} 46... Kb6 {[%clk 0:00:14.6]} 47. a4 {[%clk
0:00:18.7]} 47... Kc6 {[%clk 0:00:15.2]} 48. a5 {[%clk 0:00:18.6]} 1-0

[Event "Late-Titled-Tuesday-Blitz-March-05-2024"]
[Site "Chess.com"]
[Date "2024.03.05"]
[Round "11"]
[White "WPWPWP-2015"]
[Black "secretworker2027"]
[Result "1-0"]
[WhiteElo "2531"]
[BlackElo "2661"]
[TimeControl "180+1"]
[EndTime "16:03:10 PST"]
[Termination "WPWPWP-2015 won by resignation"]

1. e4 {[%clk 0:03:00.9]} 1... c5 {[%clk 0:02:58.2]} 2. Nf3 {[%clk 0:03:01.1]}
2... Nc6 {[%clk 0:02:58.8]} 3. Bb5 {[%clk 0:03:00.7]} 3... d6 {[%clk 0:02:58.9]}
4. O-O {[%clk 0:03:00.3]} 4... Bd7 {[%clk 0:02:57.1]} 5. Re1 {[%clk 0:02:59.6]}
5... Nf6 {[%clk 0:02:56.2]} 6. c3 {[%clk 0:02:59]} 6... a6 {[%clk 0:02:54.7]} 7.
Bd3 {[%clk 0:02:58.4]} 7... Bg4 {[%clk 0:02:54.3]} 8. h3 {[%clk 0:02:58.2]} 8...
Bh5 {[%clk 0:02:54.2]} 9. Na3 {[%clk 0:02:49]} 9... e6 {[%clk 0:02:50.1]} 10.
Nc2 {[%clk 0:02:48.4]} 10... Be7 {[%clk 0:02:40]} 11. a4 {[%clk 0:02:44.8]}
11... d5 {[%clk 0:02:39.7]} 12. e5 {[%clk 0:02:41.9]} 12... Nd7 {[%clk 0:02:39]}
13. g4 {[%clk 0:02:39.2]} 13... Bg6 {[%clk 0:02:36.7]} 14. Bxg6 {[%clk
0:02:34.1]} 14... hxg6 {[%clk 0:02:37.6]} 15. d4 {[%clk 0:02:34]} 15... Rxh3
{[%clk 0:02:36.7]} 16. Kg2 {[%clk 0:02:33.9]} 16... Rh8 {[%clk 0:02:33.1]} 17.
Rh1 {[%clk 0:02:33.9]} 17... Rxh1 {[%clk 0:02:32.4]} 18. Qxh1 {[%clk 0:02:34.8]}
18... cxd4 {[%clk 0:02:31.9]} 19. cxd4 {[%clk 0:02:34.2]} 19... Qb6 {[%clk
0:02:31.4]} 20. Qh8+ {[%clk 0:02:31.1]} 20... Bf8 {[%clk 0:02:31.2]} 21. Qg8
{[%clk 0:02:30.3]} 21... Qb3 {[%clk 0:02:28.9]} 22. Ne3 {[%clk 0:02:24.1]} 22...
Ne7 {[%clk 0:02:29.1]} 23. Qh7 {[%clk 0:02:19.2]} 23... O-O-O {[%clk 0:02:28.6]}
24. Bd2 {[%clk 0:02:18.3]} 24... Kb8 {[%clk 0:02:25.4]} 25. Bc3 {[%clk
0:02:09.7]} 25... f6 {[%clk 0:02:11.5]} 26. exf6 {[%clk 0:01:48.4]} 26... Nxf6
{[%clk 0:02:10.9]} 27. Qh2+ {[%clk 0:01:47.2]} 27... Ka8 {[%clk 0:02:09.1]} 28.
Ng5 {[%clk 0:01:36.8]} 28... Qb6 {[%clk 0:02:01.1]} 29. Qe5 {[%clk 0:01:28.6]}
29... Nc6 {[%clk 0:01:53.8]} 30. Qxe6 {[%clk 0:01:20.9]} 30... Bd6 {[%clk
0:01:53.3]} 31. Nf7 {[%clk 0:01:07.5]} 31... Bb8 {[%clk 0:01:52.8]} 32. Nxd8
{[%clk 0:00:51.2]} 32... Qxd8 {[%clk 0:01:53.7]} 33. Rh1 {[%clk 0:00:45.8]}
33... Ne7 {[%clk 0:01:40.6]} 34. Bb4 {[%clk 0:00:41.7]} 34... Nc6 {[%clk
0:01:40.4]} 35. Bc3 {[%clk 0:00:40.3]} 35... Ne7 {[%clk 0:01:40.3]} 36. Ba5
{[%clk 0:00:37]} 36... Qxa5 {[%clk 0:01:37.1]} 37. Qxe7 {[%clk 0:00:35.2]} 37...
Qxa4 {[%clk 0:01:35.1]} 38. g5 {[%clk 0:00:23.4]} 38... Nh5 {[%clk 0:01:35.2]}
39. Rh4 {[%clk 0:00:19.5]} 39... Nf4+ {[%clk 0:01:27.5]} 40. Kf3 {[%clk
0:00:19.3]} 40... Qxd4 {[%clk 0:01:25.1]} 41. Qe8 {[%clk 0:00:14.5]} 41... Ka7
{[%clk 0:01:18.7]} 42. b3 {[%clk 0:00:13.6]} 42... Qb4 {[%clk 0:01:09.2]} 43.
Qf7 {[%clk 0:00:10.9]} 43... Qe4+ {[%clk 0:01:06.4]} 44. Kg3 {[%clk 0:00:10.4]}
44... Nh5+ {[%clk 0:01:04.4]} 45. Kh3 {[%clk 0:00:04.9]} 45... Qh1+ {[%clk
0:01:04.3]} 46. Kg4 {[%clk 0:00:05.3]} 46... Qe4+ {[%clk 0:01:02.7]} 47. Kh3
{[%clk 0:00:05.5]} 47... Qh1+ {[%clk 0:01:00.6]} 48. Kg4 {[%clk 0:00:06]} 48...
Qg1+ {[%clk 0:01:01.3]} 49. Kf3 {[%clk 0:00:06.2]} 49... d4 {[%clk 0:00:53.8]}
50. Rxd4 {[%clk 0:00:05]} 50... Qh1+ {[%clk 0:00:53.3]} 51. Ke2 {[%clk
0:00:04.9]} 51... Qb1 {[%clk 0:00:52.1]} 52. Rb4 {[%clk 0:00:04.7]} 52... Qb2+
{[%clk 0:00:50.5]} 53. Kf3 {[%clk 0:00:05.2]} 1-0

[Event "Late-Titled-Tuesday-Blitz-March-05-2024"]
[Site "Chess.com"]
[Date "2024.03.05"]
[Round "11"]
[White "jactorres"]
[Black "shirovin"]
[Result "0-1"]
[WhiteElo "2207"]
[BlackElo "2070"]
[TimeControl "180+1"]
[EndTime "16:03:13 PST"]
[Termination "shirovin won on time"]

1. e4 {[%clk 0:03:00.9]} 1... d6 {[%clk 0:02:57.9]} 2. d4 {[%clk 0:03:00.8]}
2... Nf6 {[%clk 0:02:58.5]} 3. Nc3 {[%clk 0:03:00.5]} 3... Nbd7 {[%clk
0:02:59.1]} 4. f4 {[%clk 0:03:00.9]} 4... e5 {[%clk 0:02:59.4]} 5. Nf3 {[%clk
0:02:58.8]} 5... exd4 {[%clk 0:02:54.7]} 6. Nxd4 {[%clk 0:02:58.6]} 6... Be7
{[%clk 0:02:55.2]} 7. Bd3 {[%clk 0:02:57.8]} 7... Nc5 {[%clk 0:02:54.6]} 8. O-O
{[%clk 0:02:57]} 8... O-O {[%clk 0:02:51.8]} 9. h3 {[%clk 0:02:47]} 9... Nxd3
{[%clk 0:02:49.4]} 10. cxd3 {[%clk 0:02:47.2]} 10... c5 {[%clk 0:02:48.7]} 11.
Nf3 {[%clk 0:02:46.6]} 11... Bd7 {[%clk 0:02:41.8]} 12. g4 {[%clk 0:02:45.2]}
12... Bc6 {[%clk 0:02:40.4]} 13. g5 {[%clk 0:02:44.8]} 13... Nd7 {[%clk
0:02:39.2]} 14. Qe1 {[%clk 0:02:42.7]} 14... Re8 {[%clk 0:02:32.4]} 15. Qg3
{[%clk 0:02:41.2]} 15... Bf8 {[%clk 0:02:31.6]} 16. Bd2 {[%clk 0:02:39.1]} 16...
b5 {[%clk 0:02:24]} 17. Rae1 {[%clk 0:02:34.7]} 17... b4 {[%clk 0:02:22.1]} 18.
Nd1 {[%clk 0:02:34.3]} 18... Bb5 {[%clk 0:02:19.2]} 19. Nf2 {[%clk 0:02:32.8]}
19... Qb6 {[%clk 0:02:07.7]} 20. f5 {[%clk 0:02:23.1]} 20... Ne5 {[%clk
0:02:06.3]} 21. Nxe5 {[%clk 0:02:17.3]} 21... Rxe5 {[%clk 0:02:05.4]} 22. g6
{[%clk 0:02:12.7]} 22... fxg6 {[%clk 0:02:01.8]} 23. fxg6 {[%clk 0:02:12.8]}
23... h6 {[%clk 0:02:01.2]} 24. Bf4 {[%clk 0:02:06.7]} 24... Re6 {[%clk
0:01:54.8]} 25. Kh2 {[%clk 0:01:52.5]} 25... d5 {[%clk 0:01:48.3]} 26. e5 {[%clk
0:01:52]} 26... Rxg6 {[%clk 0:01:45.3]} 27. Qf3 {[%clk 0:01:41.5]} 27... Bc6
{[%clk 0:01:40.6]} 28. Rg1 {[%clk 0:01:40.7]} 28... Rxg1 {[%clk 0:01:36.5]} 29.
Rxg1 {[%clk 0:01:40.6]} 29... d4 {[%clk 0:01:34.1]} 30. Qg4 {[%clk 0:01:40.7]}
30... Bd5 {[%clk 0:01:27.4]} 31. Qh5 {[%clk 0:01:01]} 31... Bxa2 {[%clk
0:01:12.2]} 32. Ne4 {[%clk 0:00:54.7]} 32... Kh8 {[%clk 0:01:01.1]} 33. Rg6
{[%clk 0:00:24]} 33... Bf7 {[%clk 0:00:24.9]} 34. Nf6 {[%clk 0:00:02.8]} 34...
Bxg6 {[%clk 0:00:22]} 35. Qxg6 {[%clk 0:00:02]} 35... gxf6 {[%clk 0:00:22.4]}
36. exf6 {[%clk 0:00:01.9]} 36... Qe6 {[%clk 0:00:18.8]} 37. Qh5 {[%clk
0:00:01]} 37... Qg8 {[%clk 0:00:16.1]} 38. Qf5 {[%clk 0:00:01]} 38... Qh7 {[%clk
0:00:15.7]} 39. Qe6 {[%clk 0:00:01.2]} 39... Rd8 {[%clk 0:00:14.6]} 40. Be5
{[%clk 0:00:01.6]} 40... Qxd3 {[%clk 0:00:12]} 41. f7+ {[%clk 0:00:02.1]} 41...
Bg7 {[%clk 0:00:12.2]} 42. Bxg7+ {[%clk 0:00:01.1]} 42... Kxg7 {[%clk 0:00:12]}
43. Qe5+ {[%clk 0:00:01.5]} 43... Kxf7 {[%clk 0:00:11.3]} 44. Qf4+ {[%clk
0:00:02]} 44... Kg8 {[%clk 0:00:11.1]} 45. Qg4+ {[%clk 0:00:01.9]} 45... Kh7
{[%clk 0:00:11.5]} 46. Qe6 {[%clk 0:00:01.2]} 46... Qe3 {[%clk 0:00:09.8]} 0-1

[Event "Late-Titled-Tuesday-Blitz-March-05-2024"]
[Site "Chess.com"]
[Date "2024.03.05"]
[Round "11"]
[White "1g60-1"]
[Black "Ducke13"]
[Result "1-0"]
[WhiteElo "2305"]
[BlackElo "2368"]
[TimeControl "180+1"]
[EndTime "16:03:16 PST"]
[Termination "1g60-1 won by checkmate"]

1. Nf3 {[%clk 0:03:00.9]} 1... Nf6 {[%clk 0:02:47.9]} 2. e3 {[%clk 0:03:00.5]}
2... g6 {[%clk 0:02:46]} 3. c4 {[%clk 0:02:59.9]} 3... Bg7 {[%clk 0:02:46.4]} 4.
Nc3 {[%clk 0:03:00.5]} 4... O-O {[%clk 0:02:46.4]} 5. d4 {[%clk 0:03:00.8]} 5...
d5 {[%clk 0:02:46]} 6. cxd5 {[%clk 0:02:59.8]} 6... Nxd5 {[%clk 0:02:45.6]} 7.
Be2 {[%clk 0:03:00]} 7... c5 {[%clk 0:02:45.3]} 8. O-O {[%clk 0:02:59.5]} 8...
Nc6 {[%clk 0:02:44.6]} 9. h3 {[%clk 0:02:59.4]} 9... cxd4 {[%clk 0:02:37.4]} 10.
Nxd4 {[%clk 0:02:57.9]} 10... Nxd4 {[%clk 0:02:34.3]} 11. exd4 {[%clk
0:02:58.2]} 11... Be6 {[%clk 0:02:34.1]} 12. Bf3 {[%clk 0:02:56.1]} 12... Rc8
{[%clk 0:02:33.1]} 13. Qd2 {[%clk 0:02:41.6]} 13... Rc4 {[%clk 0:02:12.3]} 14.
Ne2 {[%clk 0:02:32.8]} 14... Qc7 {[%clk 0:02:04.1]} 15. Qg5 {[%clk 0:02:02.8]}
15... Bf6 {[%clk 0:01:57.6]} 16. Qh6 {[%clk 0:01:54.4]} 16... Rc8 {[%clk
0:01:54.1]} 17. Be3 {[%clk 0:01:49.5]} 17... Qa5 {[%clk 0:01:30.4]} 18. a3
{[%clk 0:01:28.1]} 18... Nxe3 {[%clk 0:01:28]} 19. Qxe3 {[%clk 0:01:22.9]} 19...
Qc7 {[%clk 0:01:17.2]} 20. Rfc1 {[%clk 0:01:16.2]} 20... Qd7 {[%clk 0:00:52.3]}
21. Rxc4 {[%clk 0:00:40.6]} 21... Rxc4 {[%clk 0:00:53.2]} 22. Rd1 {[%clk
0:00:40.2]} 22... Bd5 {[%clk 0:00:51.7]} 23. Nc3 {[%clk 0:00:35]} 23... Bxf3
{[%clk 0:00:50.5]} 24. Qxf3 {[%clk 0:00:35.9]} 24... Bxd4 {[%clk 0:00:46.7]} 25.
Nd5 {[%clk 0:00:27.8]} 25... Qe6 {[%clk 0:00:27.7]} 26. b3 {[%clk 0:00:24]}
26... Rc5 {[%clk 0:00:06.2]} 27. Rxd4 {[%clk 0:00:21.2]} 27... Qe5 {[%clk
0:00:04.3]} 28. Rd1 {[%clk 0:00:16.8]} 28... e6 {[%clk 0:00:04.5]} 29. Nf6+
{[%clk 0:00:15.1]} 29... Kg7 {[%clk 0:00:04.5]} 30. Nd7 {[%clk 0:00:15.6]} 30...
Qc7 {[%clk 0:00:03.4]} 31. Nxc5 {[%clk 0:00:15.4]} 31... Qxc5 {[%clk 0:00:04.1]}
32. b4 {[%clk 0:00:13.9]} 32... Qe7 {[%clk 0:00:02.3]} 33. Qc3+ {[%clk
0:00:12.8]} 33... e5 {[%clk 0:00:02.5]} 34. Qd3 {[%clk 0:00:12.8]} 34... Qe6
{[%clk 0:00:02.5]} 35. Qd5 {[%clk 0:00:12.8]} 35... Qf6 {[%clk 0:00:02.8]} 36.
Re1 {[%clk 0:00:12.5]} 36... e4 {[%clk 0:00:02.3]} 37. Qxe4 {[%clk 0:00:12.4]}
37... Qa6 {[%clk 0:00:02.3]} 38. Qe5+ {[%clk 0:00:12]} 38... Kg8 {[%clk
0:00:02.9]} 39. Qe3 {[%clk 0:00:12.6]} 39... Qa4 {[%clk 0:00:02.6]} 40. g3
{[%clk 0:00:12]} 40... Kg7 {[%clk 0:00:02.6]} 41. Kg2 {[%clk 0:00:12.5]} 41...
a6 {[%clk 0:00:02.4]} 42. h4 {[%clk 0:00:13]} 42... h5 {[%clk 0:00:02.6]} 43.
Qe5+ {[%clk 0:00:12.3]} 43... Kh7 {[%clk 0:00:01.9]} 44. Re3 {[%clk 0:00:12.8]}
44... Qd1 {[%clk 0:00:01.8]} 45. Rf3 {[%clk 0:00:11.8]} 45... Kg8 {[%clk
0:00:01.2]} 46. Qe8+ {[%clk 0:00:11.4]} 46... Kg7 {[%clk 0:00:01.6]} 47. Qxf7+
{[%clk 0:00:11.8]} 47... Kh6 {[%clk 0:00:02.2]} 48. Qf8+ {[%clk 0:00:12.3]}
48... Kh7 {[%clk 0:00:02.7]} 49. Rf7# {[%clk 0:00:12.5]} 1-0